fUST/lending_fUST_20251011
["ID","MTS","AMOUNT","RATE_DAILY","PERIOD"]
[390872700,1760182335918,-855.54476,0.00030173,30]
[390872701,1760182335926,-855.54476,0.00030173,30]
[390872702,1760182335936,-855.54476,0.00030173,30]
[390872703,1760182335946,-855.54477,0.00030173,30]
[390872704,1760182335955,-692.837048,0.00030173,30]
[390872705,1760182335964,-692.837048,0.00030173,30]
[390872706,1760182335975,-692.837048,0.00030173,30]
[390872707,1760182335984,-692.837048,0.00030173,30]
[390872708,1760182335993,-692.837048,0.00030173,30]
[390872709,1760182336002,-692.837048,0.00030173,30]
[390872710,1760182336012,-692.837048,0.00030173,30]
[390872711,1760182336022,-692.837038,0.00030173,30]
[390872712,1760182336031,-151.0,0.00030173,30]
[390872713,1760182336040,-151.0,0.00030173,30]
[390872714,1760182336050,-151.0,0.00030173,30]
[390872715,1760182336059,-151.0,0.00030173,30]
[390872716,1760182336068,-151.0,0.00030173,30]
[390872717,1760182336077,-151.0,0.00030173,30]
[390872718,1760182336087,-151.0,0.00030173,30]
[390872719,1760182336096,-151.0,0.00030173,30]
[390872720,1760182336105,-151.0,0.00030173,30]
[390872721,1760182336115,-151.0,0.00030173,30]
[390872722,1760182336124,-186.446428,0.00030173,30]
[390872723,1760182336133,-186.446428,0.00030173,30]
[390872724,1760182336142,-151.0,0.00030173,30]
[390872725,1760182336152,-151.0,0.00030173,30]
[390872726,1760182336162,-186.446428,0.00030173,30]
[390872727,1760182336171,-186.446428,0.00030173,30]
[390872728,1760182336180,-186.446428,0.00030173,30]
[390872729,1760182336190,-186.446428,0.00030173,30]
[390872730,1760182336199,-186.446428,0.00030173,30]
[390872731,1760182336210,-186.446424,0.00030173,30]
[390872732,1760182336219,-200.48081747,0.00030181,10]
[390872733,1760182336229,-155.680566,0.00030182,30]
[390872734,1760182336238,-151.0,0.00030182,30]
[390872735,1760182336248,-151.0,0.00030182,30]
[390872736,1760182336257,-151.0,0.00030182,30]
[390872737,1760182336267,-151.0,0.00030182,30]
[390872738,1760182336276,-151.0,0.00030182,30]
[390872739,1760182336285,-151.0,0.00030182,30]
[390872740,1760182336295,-151.0,0.00030182,30]
[390872741,1760182336303,-151.0,0.00030182,30]
[390872742,1760182336312,-151.0,0.00030182,30]
[390872743,1760182336322,-151.0,0.00030182,30]
[390872744,1760182336331,-151.0,0.00030182,30]
[390872745,1760182336340,-240.681812,0.00030182,30]
[390872746,1760182336350,-151.0,0.00030182,30]
[390872747,1760182336359,-226.966127,0.00030182,30]
[390872748,1760182336369,-151.0,0.00030182,30]
[390872749,1760182336381,-151.0,0.00030182,30]
[390872750,1760182336390,-162.984326,0.00030182,30]
[390872751,1760182336400,-391.9198272,0.00030192,30]
[390872752,1760182336409,-391.9198272,0.00030192,30]
[390872753,1760182336420,-391.9198272,0.00030192,30]
[390872754,1760182336430,-588.4106815,0.00030192,30]
[390872755,1760182336583,-297.8851395,0.00030192,30]
[390872756,1760182336593,-588.4106815,0.00030192,30]
[390872757,1760182336603,-297.8851395,0.00030192,30]
[390872758,1760182336613,-588.4106815,0.00030192,30]
[390872759,1760182336623,-297.8851395,0.00030192,30]
[390872760,1760182336635,-588.4106815,0.00030192,30]
[390872761,1760182336645,-588.4106815,0.00030192,30]
[390872762,1760182336655,-588.4106815,0.00030192,30]
[390872763,1760182336664,-362.6297018,0.00030192,30]
[390872764,1760182336673,-297.1504012,0.00030192,30]
[390872765,1760182336683,-153.0,0.00030192,30]
[390872766,1760182336693,-189.7226975,0.00030192,30]
[390872767,1760182336703,-189.7226975,0.00030192,30]
[390872768,1760182336713,-153.0,0.00030192,30]
[390872769,1760182336723,-189.7226975,0.00030192,30]
[390872770,1760182336732,-153.0,0.00030192,30]
[390872771,1760182336742,-153.0,0.00030192,30]
[390872772,1760182336751,-189.7226975,0.00030192,30]
[390872773,1760182336760,-153.0,0.00030192,30]
[390872774,1760182336770,-189.7226975,0.00030192,30]
[390872775,1760182336779,-153.0,0.00030192,30]
[390872776,1760182336788,-189.7226975,0.00030192,30]
[390872777,1760182336798,-153.0,0.00030192,30]
[390872778,1760182336809,-152.198179,0.00030194,7]
[390872779,1760182336818,-154.809388,0.00030194,7]
[390872780,1760182336828,-150.71,0.00030205,60]
[390872781,1760182336837,-10908.689062,0.00030248,60]
[390872782,1760182336847,-1356.0,0.00030249,60]
[390872783,1760182336857,-151.0,0.0003025,30]
[390872784,1760182336866,-151.0,0.0003025,30]
[390872785,1760182336876,-250.276704,0.0003025,15]
[390872786,1760182336886,-250.276704,0.0003025,15]
[390872787,1760182336895,-250.276704,0.0003025,15]
[390872788,1760182336904,-250.276706,0.0003025,15]
[390872789,1760182336913,-151.0,0.0003025,30]
[390872790,1760182336923,-151.0,0.0003025,30]
[390872791,1760182336934,-151.0,0.0003025,30]
[390872792,1760182336945,-151.0,0.0003025,30]
[390872793,1760182336954,-151.0,0.0003025,30]
[390872794,1760182336963,-151.0,0.0003025,30]
[390872795,1760182336972,-151.973218,0.0003025,30]
[390872796,1760182336983,-161.388086,0.0003025,30]
[390872797,1760182336992,-161.388086,0.0003025,30]
[390872798,1760182337002,-151.0,0.0003025,30]
[390872799,1760182337012,-151.0,0.0003025,30]
[390872800,1760182337022,-151.0,0.0003025,30]
[390872801,1760182337031,-161.388086,0.0003025,30]
[390872802,1760182337041,-161.388093,0.0003025,30]
[390872803,1760182337051,-275.681012,0.0003025,30]
[390872804,1760182337060,-275.681012,0.0003025,30]
[390872805,1760182337069,-275.681012,0.0003025,30]
[390872806,1760182337078,-275.68101,0.0003025,30]
[390872807,1760182337088,-151.0,0.0003025,30]
[390872808,1760182337097,-151.0,0.0003025,30]
[390872809,1760182337107,-151.0,0.0003025,30]
[390872810,1760182337116,-150.0,0.00030273,5]
[390872811,1760182337127,-150.0,0.00030273,5]
[390872812,1760182337137,-237.05,0.00030273,120]
[390872813,1760182337147,-1337569.69146356,0.00030324,20]
[390872814,1760182337156,-91379.92878483,0.00030324,2]
[390872815,1760182337166,-225.64433317,0.00030324,15]
[390872816,1760182337177,-300.0,0.00030324,2]
[390872817,1760182337186,-3886.14667872,0.00030324,2]
[390872818,1760182337195,-810.80488904,0.00030324,2]
[390872819,1760182337205,-258.55254485,0.00030324,2]
[390872820,1760182337214,-240.45722503,0.00030324,10]
[390872821,1760182337223,-297.28167203,0.00030324,2]
[390872822,1760182337232,-50010.84860944,0.00030324,5]
[390872823,1760182337241,-327.45363537,0.00030324,2]
[390872824,1760182337250,-292.24455438,0.00030324,2]
[390872825,1760182337259,-194.87567149,0.00030324,12]
[390872826,1760182337268,-51807.67292296,0.00030324,2]
[390872827,1760182337278,-638.10380019,0.00030324,2]
[390872828,1760182337287,-1363.68412562,0.00030324,2]
[390872829,1760182337296,-156.8318749,0.00030324,2]
[390872830,1760182337306,-6301.22593368,0.00030324,2]
[390872831,1760182337316,-1095.83517403,0.00030324,10]
[390872832,1760182337326,-157.83254214,0.00030324,2]
[390872833,1760182337335,-1719.19012825,0.00030324,2]
[390872834,1760182337345,-2078.95123518,0.00030324,2]
[390872835,1760182337354,-1500.0,0.00030324,3]
[390872836,1760182337366,-200.0,0.00030324,10]
[390872837,1760182337377,-508.24084996,0.00030324,2]
[390872838,1760182337386,-10590.68168807,0.00030324,7]
[390872839,1760182337395,-179.53043304,0.00030324,2]
[390872840,1760182337404,-468.45792409,0.00030324,2]
[390872841,1760182337413,-498.0,0.00030324,7]
[390872842,1760182337423,-909.9552654,0.00030324,14]
[390872843,1760182337432,-30481.98032135,0.00030324,2]
[390872844,1760182337442,-189.41373081,0.00030324,2]
[390872845,1760182337452,-1398.73329304,0.00030324,2]
[390872846,1760182337461,-5903.24846315,0.00030324,2]
[390872847,1760182337470,-10694.75503866,0.00030324,2]
[390872848,1760182337479,-652.03220377,0.00030324,2]
[390872849,1760182337488,-2920.0,0.00030324,2]
[390872850,1760182337497,-1541.02819709,0.00030324,14]
[390872851,1760182337506,-154.34715922,0.00030324,7]
[390872852,1760182337514,-813.13097974,0.00030324,15]
[390872853,1760182337523,-1444.51789535,0.00030324,2]
[390872854,1760182337532,-385.34640731,0.00030324,2]
[390872855,1760182337541,-201.60515329,0.00030324,2]
[390872856,1760182337550,-1521.07211415,0.00030324,15]
[390872857,1760182337559,-3150.99488683,0.00030324,2]
[390872858,1760182337568,-100369.36840543,0.00030324,2]
[390872859,1760182337577,-166.7842202,0.00030324,2]
[390872860,1760182337586,-2516.95895304,0.00030324,7]
[390872861,1760182337595,-150.53376286,0.00030324,2]
[390872862,1760182337603,-176.50861482,0.00030324,7]
[390872863,1760182337612,-258.86839954,0.00030324,2]
[390872864,1760182337622,-3770.48996384,0.00030324,2]
[390872865,1760182337634,-158.0,0.00030324,10]
[390872866,1760182337643,-1190873.12284158,0.00030324,20]
[390872867,1760182338126,-597.79,0.00024657,9]
[390872868,1760182338135,-1110.57,0.00024657,9]
[390872869,1760182338145,-801.84,0.00024657,9]
[390872870,1760182338154,-500.0,0.00024657,9]
[390872871,1760182338163,-500.0,0.00024657,9]
[390872872,1760182338172,-597.79,0.00024657,9]
[390872873,1760182338182,-1908.25,0.00024657,9]
[390872874,1760182338191,-1110.57,0.00024657,9]
[390872875,1760182338200,-801.84,0.00024657,9]
[390872876,1760182338210,-500.0,0.00024657,9]
[390872877,1760182338219,-597.79,0.00024657,9]
[390872878,1760182338229,-1908.25,0.00024657,9]
[390872879,1760182338239,-500.0,0.00024657,9]
[390872880,1760182338248,-1110.57,0.00024657,9]
[390872881,1760182338258,-801.84,0.00024657,9]
[390872882,1760182338267,-530.5,0.00024657,9]
[390872883,1760182338276,-500.0,0.00024657,9]
[390872884,1760182338286,-500.0,0.00024657,9]
[390872885,1760182338295,-500.0,0.00024657,9]
[390872886,1760182338304,-597.79,0.00024657,9]
[390872887,1760182338313,-1908.25,0.00024657,9]
[390872888,1760182338323,-1110.57,0.00024657,9]
[390872889,1760182338332,-801.84,0.00024657,9]
[390872890,1760182338342,-500.0,0.00024657,9]
[390872891,1760182338351,-597.79,0.00024657,9]
[390872892,1760182338360,-500.0,0.00024657,9]
[390872893,1760182338369,-500.0,0.00024657,9]
[390872894,1760182338382,-1110.57,0.00024657,9]
[390872895,1760182338391,-801.84,0.00024657,9]
[390872896,1760182338400,-500.0,0.00024657,9]
[390872897,1760182338410,-597.79,0.00024657,9]
[390872898,1760182338419,-1908.25,0.00024657,9]
[390872899,1760182338428,-500.0,0.00024657,9]
[390872900,1760182338437,-1110.57,0.00024657,9]
[390872901,1760182338446,-801.84,0.00024657,9]
[390872902,1760182338455,-500.0,0.00024657,9]
[390872903,1760182338464,-597.79,0.00024657,9]
[390872904,1760182338473,-1908.25,0.00024657,9]
[390872905,1760182338481,-1110.57,0.00024657,9]
[390872906,1760182338491,-801.84,0.00024657,9]
[390872907,1760182338500,-500.0,0.00024657,9]
[390872908,1760182338509,-500.0,0.00024657,9]
[390872909,1760182338518,-500.0,0.00024657,9]
[390872910,1760182338527,-597.79,0.00024657,9]
[390872911,1760182338536,-801.84,0.00024657,9]
[390872912,1760182338544,-1908.42130862,0.00024657,9]
[390872913,1760182338554,-500.0,0.00024657,9]
[390872914,1760182338563,-1110.57,0.00024657,9]
[390872915,1760182338573,-500.0,0.00024657,9]
[390872916,1760182338582,-500.0,0.00024657,9]
[390872917,1760182338591,-597.79,0.00024657,9]
[390872918,1760182338601,-151.0,0.00024657,7]
[390872919,1760182338610,-500.0,0.00024657,9]
[390872920,1760182338620,-801.84,0.00024657,9]
[390872921,1760182338631,-1110.57,0.00024657,9]
[390872922,1760182338641,-151.0,0.00024767,9]
[390872923,1760182338650,-151.0,0.00024821,9]
[390872924,1760182338660,-151.0,0.00024876,9]
[390872925,1760182338669,-245.0,0.00024931,9]
[390872926,1760182338678,-40608.61398339,0.00030324,20]
[390872927,1760182339787,-3e-08,0.00024657,9]
[390872928,1760182340476,-5000.0,0.0002441,2]
[390872929,1760182340487,-353.66145376,0.00024657,9]
[390872930,1760182340497,-490.36143089,0.00024657,9]
[390872931,1760182340506,-597.79,0.00024657,9]
[390872932,1760182340515,-801.84,0.00024657,9]
[390872933,1760182340525,-500.0,0.00024657,9]
[390872934,1760182340535,-151.0,0.00024657,7]
[390872935,1760182340544,-1110.57,0.00024657,9]
[390872936,1760182340553,-597.79,0.00024657,9]
[390872937,1760182340562,-801.84,0.00024657,9]
[390872938,1760182340571,-500.0,0.00024657,9]
[390872939,1760182340581,-1110.7307741,0.00024657,9]
[390872940,1760182340590,-151.0,0.00024657,7]
[390872941,1760182340599,-597.79,0.00024657,9]
[390872942,1760182340609,-801.84,0.00024657,9]
[390872943,1760182340618,-466.07722607,0.00024657,9]
[390872944,1760182340629,-500.0,0.00024657,9]
[390872945,1760182340638,-500.0,0.00024657,9]
[390872946,1760182340647,-151.0,0.00024657,7]
[390872947,1760182340656,-597.79,0.00024657,9]
[390872948,1760182340666,-801.84,0.00024657,9]
[390872949,1760182340675,-500.0,0.00024657,9]
[390872950,1760182340684,-500.0,0.00024657,9]
[390872951,1760182340693,-151.0,0.00024657,7]
[390872952,1760182340701,-597.79,0.00024657,9]
[390872953,1760182340710,-500.0,0.00024657,9]
[390872954,1760182340720,-801.84,0.00024657,9]
[390872955,1760182340729,-500.0,0.00024657,9]
[390872956,1760182340738,-597.79,0.00024657,9]
[390872957,1760182340747,-500.0,0.00024657,9]
[390872958,1760182340756,-151.0,0.00024657,7]
[390872959,1760182340766,-801.84,0.00024657,9]
[390872960,1760182340775,-597.79,0.00024657,9]
[390872961,1760182340785,-580.53003643,0.00024657,9]
[390872962,1760182340794,-500.0,0.00024657,9]
[390872963,1760182340804,-801.84,0.00024657,9]
[390872964,1760182340813,-151.0,0.00024657,7]
[390872965,1760182340823,-500.0,0.00024657,9]
[390872966,1760182340832,-597.79,0.00024657,9]
[390872967,1760182340841,-500.0,0.00024657,9]
[390872968,1760182340850,-801.84,0.00024657,9]
[390872969,1760182340859,-151.0,0.00024657,7]
[390872970,1760182340868,-500.0,0.00024657,9]
[390872971,1760182340879,-597.79,0.00024657,9]
[390872972,1760182340889,-268.82,0.00024657,9]
[390872973,1760182340898,-801.84,0.00024657,9]
[390872974,1760182340907,-500.0,0.00024657,9]
[390872975,1760182340917,-597.79,0.00024657,9]
[390872976,1760182340927,-151.0,0.00024657,7]
[390872977,1760182340939,-801.91320441,0.00024657,9]
[390872978,1760182340948,-500.0,0.00024657,9]
[390872979,1760182340958,-597.79,0.00024657,9]
[390872980,1760182340968,-500.0,0.00024657,9]
[390872981,1760182340977,-151.0,0.00024657,7]
[390872982,1760182340987,-500.0,0.00024657,9]
[390872983,1760182340996,-500.0,0.00024657,9]
[390872984,1760182341006,-597.79,0.00024657,9]
[390872985,1760182341018,-151.0,0.00024657,7]
[390872986,1760182341027,-500.0,0.00024657,9]
[390872987,1760182341037,-597.79,0.00024657,9]
[390872988,1760182341046,-597.92,0.00024657,9]
[390872989,1760182341056,-500.0,0.00024657,9]
[390872990,1760182341066,-151.0,0.00024657,7]
[390872991,1760182341075,-500.0,0.00024657,9]
[390872992,1760182341085,-151.0,0.00024657,7]
[390872993,1760182341094,-181.485155,0.00024657,7]
[390872994,1760182341103,-500.0,0.00024657,9]
[390872995,1760182341112,-500.0,0.00024657,9]
[390872996,1760182341121,-181.485155,0.00024657,7]
[390872997,1760182341134,-500.0,0.00024657,9]
[390872998,1760182341143,-500.0,0.00024657,9]
[390872999,1760182341153,-500.0,0.00024657,9]
[390873000,1760182341162,-181.485155,0.00024657,7]
[390873001,1760182341171,-500.0,0.00024657,9]
[390873002,1760182341181,-181.485155,0.00024657,7]
[390873003,1760182341190,-500.0,0.00024657,9]
[390873004,1760182341199,-181.485155,0.00024657,7]
[390873005,1760182341208,-500.0,0.00024657,9]
[390873006,1760182341217,-500.0,0.00024657,9]
[390873007,1760182341227,-500.0,0.00024657,9]
[390873008,1760182341236,-181.485155,0.00024657,7]
[390873009,1760182341246,-500.0,0.00024657,9]
[390873010,1760182341255,-500.0,0.00024657,9]
[390873011,1760182341264,-181.485155,0.00024657,7]
[390873012,1760182341274,-500.0,0.00024657,9]
[390873013,1760182341283,-500.0,0.00024657,9]
[390873014,1760182341292,-517.4,0.00024657,9]
[390873015,1760182341302,-500.0,0.00024657,9]
[390873016,1760182341311,-181.485155,0.00024657,7]
[390873017,1760182341321,-500.0,0.00024657,9]
[390873018,1760182341330,-500.0,0.00024657,9]
[390873019,1760182341340,-517.4,0.00024657,9]
[390873020,1760182341349,-500.0,0.00024657,9]
[390873021,1760182341359,-500.0,0.00024657,9]
[390873022,1760182341369,-500.0,0.00024657,9]
[390873023,1760182341380,-181.485155,0.00024657,7]
[390873024,1760182341389,-173.38,0.00024657,9]
[390873025,1760182341398,-517.4,0.00024657,9]
[390873026,1760182341408,-500.0,0.00024657,9]
[390873027,1760182341417,-391.9198272,0.00029233,30]
[390873028,1760182341426,-297.8851395,0.0002937,30]
[390873029,1760182341435,-588.4106815,0.0002937,30]
[390873030,1760182341444,-38407.24804296,0.00030324,20]
[390873031,1760182341456,-25085.76796767,0.00030324,20]
[390873032,1760182341467,-837.92167534,0.00030324,20]
[390873033,1760182341482,-181.485155,0.00024657,7]
[390873034,1760182341493,-32827.28827212,0.00030324,20]
[390873035,1760182341557,411.81,0.00024346,10]
[390873036,1760182344789,205.10522659,0.00024155,2]
[390873037,1760182352683,5000.0,0.00024155,2]
[390873038,1760182367394,317.62,0.00023621,2]
[390873039,1760182376275,4682.39,0.00024155,2]
[390873040,1760182376296,317.61,0.00024155,2]
[390873041,1760182399040,5000.0,0.00024155,2]
[390873042,1760182422343,4682.4,0.00024155,2]
[390873043,1760182422366,317.6,0.00024155,2]
[390873044,1760182423177,-168.88019875,0.00024155,2]
[390873045,1760182423208,-225.84437853,0.00024155,6]
[390873046,1760182426348,343.17,0.00024246,10]
[390873048,1760182437710,285.98,0.00024246,10]
[390873049,1760182445236,5000.0,0.00024246,2]
[390873050,1760182449043,238.31,0.00024246,10]
[390873051,1760182449394,313.58,0.00018846,2]
[390873052,1760182449440,-300.0,0.00024254,2]
[390873053,1760182449930,627.16,0.00020559,2]
[390873054,1760182450364,940.74,0.00022272,2]
[390873055,1760182450918,1254.32,0.00023985,2]
[390873056,1760182453209,6577.79,0.00023442,2]
[390873057,1760182453232,10000.01,0.00023442,2]
[390873058,1760182453254,8538.6569385,0.00023442,2]
[390873059,1760182460196,198.59,0.00024246,10]
[390873060,1760182469067,1262.7630615,0.00024254,2]
[390873061,1760182469088,3737.2369385,0.00024254,2]
[390873062,1760182471398,165.5,0.00024246,10]
[390873063,1760182483338,827.5,0.00024246,10]
[390873064,1760182492486,5000.0,0.00024255,2]
[390873065,1760182501301,300.0,0.00024254,2]
[390873066,1760182501975,300.0,0.00024254,2]
[390873067,1760182502012,300.0,0.00024254,2]
[390873068,1760182502112,300.0,0.00024254,2]
[390873069,1760182502138,300.0,0.00024254,2]
[390873070,1760182504005,160.0,0.00024255,2]
[390873071,1760182508034,1200.0,0.00024254,2]
[390873072,1760182515326,1147.01,0.00024255,2]
[390873073,1760182515348,3852.99,0.00024255,2]
[390873074,1760182520186,6147.02,0.00024255,2]
[390873075,1760182529608,298.65,0.00021611,2]
[390873076,1760182530029,597.3,0.00023575,2]
[390873077,1760182537976,5000.0,0.00024255,2]
[390873078,1760182560879,4104.06,0.00024255,2]
[390873079,1760182561267,-895.94,0.00024255,2]
[390873080,1760182562708,300.0,0.00024254,2]
[390873081,1760182563404,7908.13,0.00023328,2]
[390873082,1760182563425,6262.7730615,0.00023328,2]
[390873083,1760182563446,10000.01,0.00023328,2]
[390873084,1760182563466,5349.7439571,0.00023328,2]
[390873086,1760182572375,-417.15472785,0.00024255,2]
[390873087,1760182582670,-7070.25206132,0.00024255,2]
[390873088,1760182582786,-10000.01,0.00024255,2]
[390873089,1760182583591,4650.2660429,0.00024254,2]
[390873090,1760182583614,349.7339571,0.00024254,2]
[390873091,1760182587186,2125.8,0.00024246,3]
[390873092,1760182597849,1062.9,0.00024246,3]
[390873093,1760182606221,5000.0,0.00024255,2]
[390873094,1760182608816,531.45,0.00024246,3]
[390873095,1760182616238,322.22,0.00021381,2]
[390873096,1760182616701,644.45,0.00023325,2]
[390873097,1760182619355,265.72,0.00024246,3]
[390873098,1760182622412,300.0,0.00024254,2]
[390873105,1760182629652,5000.0,0.00024255,2]
[390873111,1760182640439,221.44,0.00024246,3]
[390873112,1760182646327,1200.0,0.00024254,2]
[390873113,1760182648723,1500.0,0.00027,120]
[390873114,1760182651044,664.33,0.00024246,3]
[390873115,1760182652350,2914.24,0.00024255,2]
[390873116,1760182652371,2085.76,0.00024255,2]
[390873117,1760182655895,172.329635,0.00023695,2]
[390873118,1760182656097,172.329635,0.00023695,120]
[390873119,1760182671636,1373.32,0.00024246,3]
[390873120,1760182674977,5000.0,0.00024255,2]
[390873121,1760182679778,432.27,0.00015205,2]
[390873122,1760182680246,432.27,0.00015205,2]
[390873123,1760182682287,504.060365,0.00024246,3]
[390873124,1760182682313,182.599635,0.00024246,3]
[390873125,1760182682619,300.0,0.00024254,2]
[390873126,1760182696798,309.92,0.0001909,2]
[390873127,1760182697255,619.84,0.00020825,2]
[390873128,1760182697681,929.76,0.00022561,2]
[390873129,1760182697924,5000.0,0.00024255,2]
[390873130,1760182699056,572.21,0.00024246,3]
[390873131,1760182699583,-160.0,0.00024255,2]
[390873132,1760182699614,-500.0,0.00024255,2]
[390873133,1760182709734,286.11,0.00024246,3]
[390873134,1760182720390,858.35,0.00024246,3]
[390873135,1760182720930,5000.0,0.00024255,2]
[390873136,1760182721628,2535.55,0.00024255,2]
[390873137,1760182721649,10000.01,0.00024255,2]
[390873138,1760182721670,10000.01,0.00024255,2]
[390873139,1760182721691,10000.01,0.00024255,2]
[390873140,1760182721712,10000.01,0.00024255,2]
[390873141,1760182721735,7464.41,0.00024255,2]
[390873142,1760182729143,2535.6,0.00024255,2]
[390873143,1760182729164,2464.4,0.00024255,2]
[390873144,1760182730794,389.33,0.00024246,3]
[390873145,1760182734155,595.23795086,0.00023235,2]
[390873146,1760182734726,500.0,0.00024255,2]
[390873147,1760182741441,194.67,0.00024246,3]
[390873148,1760182742640,300.0,0.00024254,2]
[390873149,1760182744889,5000.0,0.00024255,2]
[390873150,1760182752160,188.17,0.00024246,3]
[390873151,1760182752965,368.20204914,0.00024255,2]
[390873152,1760182752985,4631.79795086,0.00024255,2]
[390873153,1760182761816,2200.0,0.00027,120]
[390873154,1760182777998,4965.19,0.00023555,2]
[390873155,1760182781078,311.8,0.00018848,2]
[390873156,1760182781552,623.61,0.00020562,2]
[390873157,1760182782062,935.41,0.00022275,2]
[390873158,1760182791668,1592.0,0.00027,120]
[390873159,1760182807625,585.11671427,0.00023235,2]
[390873162,1760182862796,287.99,0.00019069,2]
[390873163,1760182863199,575.99,0.00020802,2]
[390873164,1760182863641,863.98,0.00022536,2]
[390873165,1760182887864,202.2562577,0.00023226,2]
[390873166,1760182917261,5613.85702803,0.00023555,2]
[390873167,1760182922571,300.0,0.00023554,2]
[390873168,1760182943442,266.0,0.0001907,2]
[390873169,1760182943926,532.0,0.00020804,2]
[390873170,1760182944377,798.0,0.00022537,2]
[390873171,1760182961810,8404.01,0.00022996,2]
[390873172,1760182961831,10000.01,0.00022996,2]
[390873173,1760182961851,10000.01,0.00022996,2]
[390873174,1760182961871,10000.01,0.00022996,2]
[390873175,1760182997869,10000.0,0.00020501,2]
[390873176,1760183005872,0.01,0.00020501,2]
[390873177,1760183005896,9999.99,0.00020501,2]
[390873179,1760183023483,406.08,0.00018896,2]
[390873180,1760183106381,400.91,0.00018853,2]
[390873181,1760183150484,5000.0,0.00020501,2]
[390873182,1760183158747,4193.02,0.00020501,2]
[390873183,1760183158769,806.98,0.00020501,2]
[390873184,1760183174969,5000.0,0.00020501,2]
[390873185,1760183183466,4193.03,0.00020501,2]
[390873186,1760183183488,806.97,0.00020501,2]
[390873187,1760183187665,395.8,0.00018851,2]
[390873189,1760183199061,5000.0,0.00020501,2]
[390873190,1760183207145,3797.24,0.00020501,2]
[390873191,1760183207168,1202.76,0.00020501,2]
[390873192,1760183230237,5000.0,0.00020501,2]
[390873193,1760183253347,3797.25,0.00020501,2]
[390873194,1760183253370,1202.75,0.00020501,2]
[390873195,1760183269584,390.77,0.0001888,2]
[390873196,1760183277399,5000.0,0.00020501,2]
[390873197,1760183295097,1201.012043,0.00013699,2]
[390873198,1760183295313,1201.012043,0.00020187,2]
[390873199,1760183300716,5000.0,0.00020501,2]
[390873219,1760183432503,-390.05,0.00018858,2]
[390873221,1760183432512,-3461.76534547,0.00018858,2]
[390873223,1760183432521,-500.0,0.000189,2]
[390873225,1760183432531,-1000.0,0.00019996,2]
[390873227,1760183432541,-5000.0,0.00020309,2]
[390873229,1760183432550,-837.80149028,0.00020512,2]
[390873279,1760183438507,-362.19850972,0.00020512,2]
[390873280,1760183438517,-300.0,0.00020513,2]
[390873281,1760183438527,-300.0,0.00020513,2]
[390873282,1760183438536,-138.22086303,0.00020513,2]
[390873283,1760183438563,-161.77913697,0.00020513,2]
[390873284,1760183438574,-300.0,0.00020513,2]
[390873285,1760183438584,-765.64767451,0.00020514,2]
[390873286,1760183438594,-780.09,0.00020573,2]
[390873287,1760183438604,-300.0,0.00020922,2]
[390873288,1760183438614,-300.0,0.00020923,2]
[390873290,1760183438626,-300.0,0.00020923,2]